[Event "Uhlenkoeper-Open 2024"]
[Site "Uelzen"]
[Date "2024.12.30"]
[Round "8.1"]
[White "Parvanyan, Ashot"]
[Black "Stelmaszyk, Nico"]
[Result "1/2-1/2"]
[ECO "E05"]
[WhiteElo "2399"]
[BlackElo "2403"]
[Annotator "RC"]
[PlyCount "38"]
[EventDate "2024.12.27"]
[EventType "swiss"]
[EventCountry "GER"]
[SourceTitle "playchess.com"]
[Source "ChessBase"]
[SourceQuality "1"]
[TimeControl "40/5400+30:1800+30"]

1. Nf3 {[%emt 0:00:05]} d5 {[%emt 0:00:04]} 2. d4 {[%emt 0:00:13]} Nf6 {[%emt 0:00:06]} 3. c4 {[%emt 0:00:05]} e6 {[%emt 0:00:07]} 4. g3 {[%emt 0:00:16]} Be7 {[%emt 0:00:05]} 5. Bg2 {[%emt 0:00:06]} O-O {[%emt 0:00:05]} 6. O-O {[%emt 0:00:13]} dxc4 {[%emt 0:00:03]} 7. Qc2 {[%emt 0:00:12]} b6 {[%emt 0:00:06]} 8. Bg5 {[%emt 0:01:41]} Nd5 {[%emt 0:00:07]} 9. Bxe7 {[%emt 0:00:06]} Qxe7 {[%emt 0:00:04]} 10. e4 {[%emt 0:00:41]} Nb4 {[%emt 0:00:42]} 11. Qc3 {[%emt 0:00:06]} c5 {[%emt 0:00:16]} 12. a3 {[%emt 0:00:37]} N4c6 {[%emt 0:00:25]} 13. d5 {[%emt 0:00:07]} Na5 {[%emt 0:00:10]} 14. Nbd2 {[%emt 0:00:12]} Ba6 {[%emt 0:00:07]} 15. Nh4 {[%emt 0:00:55]} Nd7 {[%emt 0:00:15]} 16. e5 {[%emt 0:00:17]} exd5 {[%emt 0:00:05]} 17. Bxd5 {[%emt 0:00:05]} Rad8 {[%emt 0:00:27]} 18. Rae1 {[%emt 0:03:36]} Nb3 {[%emt 0:00:18]} 19. e6 {[%emt 0:49:32]} Qg5 {[%emt 0:00:27]} 1/2-1/2

[Event "Uhlenkoeper-Open 2024"]
[Site "Uelzen"]
[Date "2024.12.30"]
[Round "8.2"]
[White "Bagrationi, Alexander"]
[Black "Glek, Igor"]
[Result "1/2-1/2"]
[ECO "A21"]
[WhiteElo "2384"]
[BlackElo "2431"]
[Annotator "RC"]
[PlyCount "57"]
[EventDate "2024.12.27"]
[EventType "swiss"]
[EventCountry "GER"]
[SourceTitle "playchess.com"]
[Source "ChessBase"]
[SourceQuality "1"]
[TimeControl "40/5400+30:1800+30"]

1. c4 {[%emt 0:02:04]} e5 {[%emt 0:00:56]} 2. Nc3 {[%emt 0:00:11]} Bb4 {[%emt 0:00:11]} 3. Nd5 {[%emt 0:01:45]} Be7 {[%emt 0:03:34]} 4. d4 {[%emt 0:01:38]} d6 {[%emt 0:00:02]} 5. Nf3 {[%emt 0:00:57]} c6 {[%emt 0:12:38]} 6. Nxe7 {[%emt 0:01:03]} Qxe7 {[%emt 0:00:05]} 7. e3 {[%emt 0:02:52]} f6 {[%emt 0:04:11]} 8. b4 {[%emt 0:06:21]} Nh6 {[%emt 0:07:39]} 9. Be2 {[%emt 0:05:27]} O-O {[%emt 0:00:53]} 10. O-O {[%emt 0:00:20]} Nf7 {[%emt 0:08:30]} 11. a4 {[%emt 0:02:04]} Be6 {[%emt 0:08:14]} 12. Qc2 {[%emt 0:05:23]} Nd7 {[%emt 0:09:34]} 13. b5 {[%emt 0:02:20]} c5 {[%emt 0:05:59]} 14. d5 {[%emt 0:04:37]} Bg4 {[%emt 0:00:57]} 15. Ng5 {[%emt 0:00:18]} Nxg5 {[%emt 0:07:19]} 16. Bxg4 {[%emt 0:00:08]} e4 {[%emt 0:00:14]} 17. Bf5 {[%emt 0:02:12]} Ne5 {[%emt 0:09:58]} 18. Bb2 {[%emt 0:02:26]} Rae8 {[%emt 0:10:04]} 19. Bxe4 {[%emt 0:22:57]} Nxe4 {[%emt 0:04:39]} 20. Qxe4 {[%emt 0:00:09]} f5 {[%emt 0:00:14]} 21. Qc2 {[%emt 0:00:18]} Qh4 {[%emt 0:00:09]} 22. Bxe5 {[%emt 0:04:24]} Rxe5 {[%emt 0:00:05]} 23. Qd3 {[%emt 0:00:24]} f4 {[%emt 0:04:07]} 24. g3 {[%emt 0:01:47]} fxg3 {[%emt 0:01:38]} 25. fxg3 {[%emt 0:00:06]} Rxf1+ {[%emt 0:00:08]} 26. Rxf1 {[%emt 0:00:13]} Qe4 {[%emt 0:00:07]} 27. Qxe4 {[%emt 0:05:38]} Rxe4 {[%emt 0:00:01]} 28. Rf4 {[%emt 0:00:07]} Rxe3 {[%emt 0:00:03]} 29. a5 {[%emt 0:00:07]} 1/2-1/2

[Event "Uhlenkoeper-Open 2024"]
[Site "Uelzen"]
[Date "2024.12.30"]
[Round "8.3"]
[White "Bargsten, Justus"]
[Black "Stopa, Jacek"]
[Result "0-1"]
[ECO "C54"]
[WhiteElo "2228"]
[BlackElo "2323"]
[Annotator "RC"]
[PlyCount "42"]
[EventDate "2024.12.27"]
[EventType "swiss"]
[EventCountry "GER"]
[SourceTitle "playchess.com"]
[Source "ChessBase"]
[SourceQuality "1"]
[TimeControl "40/5400+30:1800+30"]

1. e4 {[%emt 0:00:02]} e5 {[%emt 0:00:06]} 2. Nf3 {[%emt 0:00:04]} Nc6 {[%emt 0:00:03]} 3. Bc4 {[%emt 0:00:13]} Bc5 {[%emt 0:00:06]} 4. c3 {[%emt 0:00:05]} Nf6 {[%emt 0:00:03]} 5. d3 {[%emt 0:00:06]} d6 {[%emt 0:00:05]} 6. Bg5 {[%emt 0:02:22]} h6 {[%emt 0:00:33]} 7. Bh4 {[%emt 0:00:04]} a6 {[%emt 0:01:40]} 8. a4 {[%emt 0:00:09]} Ba7 {[%emt 0:00:47]} 9. Nbd2 {[%emt 0:01:06]} Qe7 {[%emt 0:01:09]} 10. b4 {[%emt 0:04:20]} Nd8 {[%emt 0:06:00]} 11. Nf1 {[%emt 0:06:31]} g5 {[%emt 0:00:58]} 12. Bg3 {[%emt 0:00:17]} Ne6 {[%emt 0:02:33]} 13. Ne3 {[%emt 0:08:45]} Nf4 {[%emt 0:00:12]} 14. O-O {[%emt 0:00:44]} Rg8 {[%emt 0:10:25]} 15. Re1 {[%emt 0:03:18]} Kf8 {[%emt 0:07:13]} 16. Qc2 {[%emt 0:04:40]} h5 {[%emt 0:11:10]} 17. h4 {[%emt 0:05:05]} gxh4 {[%emt 0:12:50]} 18. Nxh4 {[%emt 0:01:34]} Ng4 {[%emt 0:07:11]} 19. Nhf5 {[%emt 0:02:52]} Nxe3 {[%emt 0:01:13]} 20. Nxe7 {[%emt 0:13:53]} Nxc2 {[%emt 0:00:22]} 21. Nxg8 {[%emt 0:00:17]} Kxg8 {[%emt 0:02:19]} 0-1

[Event "Uhlenkoeper-Open 2024"]
[Site "Uelzen"]
[Date "2024.12.30"]
[Round "8.4"]
[White "Weigand, Anton"]
[Black "Tarasenko, Nazar"]
[Result "1-0"]
[ECO "B22"]
[WhiteElo "2092"]
[BlackElo "2011"]
[Annotator "RC"]
[PlyCount "57"]
[EventDate "2024.12.27"]
[EventType "swiss"]
[EventCountry "GER"]
[SourceTitle "playchess.com"]
[Source "ChessBase"]
[SourceQuality "1"]
[TimeControl "40/5400+30:1800+30"]

1. e4 {[%emt 0:00:05]} c5 {[%emt 0:00:01]} 2. c3 {[%emt 0:00:05]} d5 {[%emt 0:00:01]} 3. exd5 {[%emt 0:00:06]} Qxd5 {[%emt 0:00:01]} 4. d4 {[%emt 0:00:08]} Nf6 {[%emt 0:00:07]} 5. Nf3 {[%emt 0:00:06]} Bg4 {[%emt 0:00:03]} 6. dxc5 {[%emt 0:00:21]} Qxd1+ {[%emt 0:00:06]} 7. Kxd1 {[%emt 0:00:08]} e5 {[%emt 0:00:04]} 8. b4 {[%emt 0:00:15]} e4 {[%emt 0:00:04]} 9. h3 {[%emt 0:00:25]} Bh5 {[%emt 0:00:02]} 10. g4 {[%emt 0:00:07]} Nxg4 {[%emt 0:00:02]} 11. hxg4 {[%emt 0:00:06]} Bxg4 {[%emt 0:00:03]} 12. Rg1 {[%emt 0:00:10]} Bxf3+ {[%emt 0:01:12]} 13. Kc2 {[%emt 0:00:10]} Bh5 {[%emt 0:10:48]} 14. Bg2 {[%emt 0:08:35]} f5 {[%emt 0:02:56]} 15. Nd2 {[%emt 0:02:31]} Kf7 {[%emt 0:04:55]} 16. Re1 {[%emt 0:02:42]} Bg6 {[%emt 0:04:45]} 17. Nc4 {[%emt 0:05:50]} Nd7 {[%emt 0:02:56]} 18. f3 {[%emt 0:02:45]} Re8 {[%emt 0:03:33]} 19. fxe4 {[%emt 0:00:17]} fxe4 {[%emt 0:00:03]} 20. Be3 {[%emt 0:00:25]} Ne5 {[%emt 0:05:14]} 21. Nxe5+ {[%emt 0:01:13]} Rxe5 {[%emt 0:00:07]} 22. Rad1 {[%emt 0:01:54]} Bf5 {[%emt 0:03:16]} 23. Bd4 {[%emt 0:06:48]} Re7 {[%emt 0:03:40]} 24. Rf1 {[%emt 0:01:10]} Kg6 {[%emt 0:01:09]} 25. Rg1 {[%emt 0:01:40]} Kf7 {[%emt 0:03:37]} 26. Rdf1 {[%emt 0:29:37]} Ke6 {[%emt 0:00:26]} 27. Rf4 {[%emt 0:00:04]} Rg8 {[%emt 0:01:26]} 28. Bf1 {[%emt 0:06:48]} e3+ {[%emt 0:03:42]} 29. Kd1 {[%emt 0:01:06]} 1-0

[Event "Uhlenkoeper-Open 2024"]
[Site "Uelzen"]
[Date "2024.12.30"]
[Round "8.5"]
[White "Martin, Dennis"]
[Black "von Estorff, Jacob"]
[Result "0-1"]
[ECO "D85"]
[WhiteElo "2005"]
[BlackElo "2209"]
[Annotator "RC"]
[PlyCount "106"]
[EventDate "2024.12.27"]
[EventType "swiss"]
[EventCountry "GER"]
[SourceTitle "playchess.com"]
[Source "ChessBase"]
[SourceQuality "1"]
[TimeControl "40/5400+30:1800+30"]

1. d4 {[%emt 0:00:02]} Nf6 {[%emt 0:00:35]} 2. c4 {[%emt 0:00:03]} g6 {[%emt 0:00:39]} 3. Nc3 {[%emt 0:00:03]} d5 {[%emt 0:00:38]} 4. cxd5 {[%emt 0:00:04]} Nxd5 {[%emt 0:00:06]} 5. Na4 {[%emt 0:00:13]} Bg7 {[%emt 0:06:45]} 6. e4 {[%emt 0:00:12]} Nb6 {[%emt 0:00:37]} 7. Be3 {[%emt 0:00:03]} O-O {[%emt 0:02:56]} 8. Nf3 {[%emt 0:01:04]} Bg4 {[%emt 0:08:22]} 9. Nc5 {[%emt 0:01:42]} Qc8 {[%emt 0:01:26]} 10. Qb3 {[%emt 0:10:10]} N8d7 {[%emt 0:02:45]} 11. Be2 {[%emt 0:01:55]} Nxc5 {[%emt 0:07:40]} 12. dxc5 {[%emt 0:00:03]} Nd7 {[%emt 0:00:14]} 13. Rc1 {[%emt 0:01:10]} c6 {[%emt 0:04:11]} 14. h3 {[%emt 0:01:11]} Bxf3 {[%emt 0:05:19]} 15. Bxf3 {[%emt 0:00:08]} Qc7 {[%emt 0:03:28]} 16. O-O {[%emt 0:00:50]} Rfd8 {[%emt 0:04:39]} 17. Rfd1 {[%emt 0:00:21]} Be5 {[%emt 0:01:49]} 18. Rc2 {[%emt 0:09:11]} Nf8 {[%emt 0:03:15]} 19. Rcd2 {[%emt 0:03:00]} Rxd2 {[%emt 0:00:52]} 20. Rxd2 {[%emt 0:00:46]} Rb8 {[%emt 0:04:23]} 21. g3 {[%emt 0:12:25]} b6 {[%emt 0:04:08]} 22. cxb6 {[%emt 0:00:31]} axb6 {[%emt 0:00:09]} 23. Kg2 {[%emt 0:00:40]} c5 {[%emt 0:01:33]} 24. Be2 {[%emt 0:02:58]} Qc6 {[%emt 0:08:59]} 25. f4 {[%emt 0:01:40]} Bc7 {[%emt 0:01:53]} 26. Bf3 {[%emt 0:02:55]} e5 {[%emt 0:04:27]} 27. Qd5 {[%emt 0:05:06]} Qf6 {[%emt 0:02:01]} 28. fxe5 {[%emt 0:03:43]} Bxe5 {[%emt 0:01:18]} 29. b3 {[%emt 0:01:52]} Bc7 {[%emt 0:06:22]} 30. Qc4 {[%emt 0:01:43]} h5 {[%emt 0:01:26]} 31. b4 {[%emt 0:03:30]} h4 {[%emt 0:04:00]} 32. bxc5 {[%emt 0:00:22]} bxc5 {[%emt 0:01:20]} 33. Qxc5 {[%emt 0:01:39]} Ne6 {[%emt 0:01:28]} 34. Qc4 {[%emt 0:03:39]} Bxg3 {[%emt 0:00:32]} 35. Qf1 {[%emt 0:01:20]} Qc3 {[%emt 0:01:47]} 36. Qd3 {[%emt 0:01:41]} Qc7 {[%emt 0:00:58]} 37. Rc2 {[%emt 0:01:29]} Qe5 {[%emt 0:02:21]} 38. Qc3 {[%emt 0:03:41]} Qd6 {[%emt 0:02:13]} 39. Qd2 {[%emt 0:00:18]} Qe7 {[%emt 0:01:06]} 40. Qc1 {[%emt 0:02:31]} Kh7 {[%emt 0:01:01]} 41. Bg4 {[%emt 0:33:30]} Ng7 {[%emt 0:08:20]} 42. Bf3 {[%emt 0:00:00]} Ne6 {[%emt 0:02:12]} 43. Bg4 {[%emt 0:00:00]} Nd4 {[%emt 0:01:12]} 44. Bxd4 {[%emt 0:00:00]} Qxe4+ {[%emt 0:00:06]} 45. Bf3 {[%emt 0:00:00]} Qxd4 {[%emt 0:00:04]} 46. Qd2 {[%emt 0:00:00]} Qf6 {[%emt 0:01:14]} 47. Qd5 {[%emt 0:00:00]} Bf4 {[%emt 0:04:31]} 48. Bg4 {[%emt 0:00:00]} Bg3 {[%emt 0:01:19]} 49. Bf3 {[%emt 0:00:00]} Rd8 {[%emt 0:00:26]} 50. Qb3 {[%emt 0:00:00]} Be5 {[%emt 0:01:58]} 51. Qe3 {[%emt 0:00:00]} Bf4 {[%emt 0:02:01]} 52. Qc5 {[%emt 0:00:00]} Rd3 {[%emt 0:01:40]} 53. Re2 {[%emt 0:00:00]} Rxf3 {[%emt 0:00:53]} 0-1

[Event "Uhlenkoeper-Open 2024"]
[Site "Uelzen"]
[Date "2024.12.30"]
[Round "8.6"]
[White "Bogomolow, Sergej"]
[Black "Burnus, Finn Crispin"]
[Result "1-0"]
[ECO "C90"]
[WhiteElo "2090"]
[BlackElo "1883"]
[Annotator "NA"]
[PlyCount "93"]
[EventDate "2024.12.27"]
[EventType "swiss"]
[EventCountry "GER"]
[SourceTitle "playchess.com"]
[Source "ChessBase"]
[SourceQuality "1"]
[TimeControl "40/5400+30:1800+30"]

1. e4 {[%emt 0:00:03]} e5 {[%emt 0:00:07]} 2. Nf3 {[%emt 0:00:03]} Nc6 {[%emt 0:00:05]} 3. Bb5 {[%emt 0:00:13]} a6 {[%emt 0:00:05]} 4. Ba4 {[%emt 0:00:03]} Nf6 {[%emt 0:00:06]} 5. O-O {[%emt 0:00:14]} b5 {[%emt 0:00:29]} 6. Bb3 {[%emt 0:00:08]} Be7 {[%emt 0:00:24]} 7. Re1 {[%emt 0:00:42]} O-O {[%emt 0:00:21]} 8. d3 {[%emt 0:00:33]} d6 {[%emt 0:00:26]} 9. c3 {[%emt 0:00:19]} Na5 {[%emt 0:01:51]} 10. Bc2 {[%emt 0:00:13]} c5 {[%emt 0:00:05]} 11. Nbd2 {[%emt 0:01:17]} Nc6 {[%emt 0:01:00]} 12. a4 {[%emt 0:03:57]} b4 {[%emt 0:12:59]} 13. Nc4 {[%emt 0:10:30]} Be6 {[%emt 0:03:36]} 14. Ne3 {[%emt 0:03:23]} bxc3 {[%emt 0:03:39]} 15. bxc3 {[%emt 0:00:16]} Ng4 {[%emt 0:09:28]} 16. Nf5 {[%emt 0:08:54]} Bxf5 {[%emt 0:03:20]} 17. exf5 {[%emt 0:02:38]} Re8 {[%emt 0:05:18]} 18. h3 {[%emt 0:01:24]} Nf6 {[%emt 0:00:06]} 19. Bb3 {[%emt 0:09:14]} Na5 {[%emt 0:01:01]} 20. Ba2 {[%emt 0:01:03]} Rc8 {[%emt 0:01:48]} 21. Ng5 {[%emt 0:09:52]} c4 {[%emt 0:00:49]} 22. Rb1 {[%emt 0:03:38]} Nd5 {[%emt 0:04:22]} 23. Qh5 {[%emt 0:02:05]} Bxg5 {[%emt 0:00:22]} 24. Bxg5 {[%emt 0:00:11]} f6 {[%emt 0:00:33]} 25. Bd2 {[%emt 0:00:09]} Qd7 {[%emt 0:23:32]} 26. Re4 {[%emt 0:09:14]} Ne7 {[%emt 0:00:38]} 27. dxc4 {[%emt 0:09:39]} Nxf5 {[%emt 0:02:03]} 28. c5+ {[%emt 0:05:34]} d5 {[%emt 0:00:37]} 29. Rb6 {[%emt 0:00:37]} Nc4 {[%emt 0:02:28]} 30. Bxc4 {[%emt 0:04:20]} dxc4 {[%emt 0:00:18]} 31. Rxc4 {[%emt 0:01:05]} g6 {[%emt 0:11:42]} 32. Qe2 {[%emt 0:01:48]} Red8 {[%emt 0:00:58]} 33. Be3 {[%emt 0:00:41]} Rc6 {[%emt 0:05:09]} 34. Qf3 {[%emt 0:04:23]} Nxe3 {[%emt 0:03:03]} 35. fxe3 {[%emt 0:02:20]} Rdc8 {[%emt 0:01:26]} 36. Rcb4 {[%emt 0:01:11]} Qe6 {[%emt 0:02:43]} 37. Qe2 {[%emt 0:01:46]} a5 {[%emt 0:01:31]} 38. R4b5 {[%emt 0:01:40]} Qd5 {[%emt 0:00:26]} 39. e4 {[%emt 0:00:18]} Qd8 {[%emt 0:00:24]} 40. Qc4+ {[%emt 0:01:53]} Kg7 {[%emt 0:00:35]} 41. Rxc6 {[%emt 0:06:54]} Rxc6 {[%emt 0:00:09]} 42. Rb7+ {[%emt 0:04:43]} Kh6 {[%emt 0:12:19]} 43. Qf7 {[%emt 0:11:57]} Qd1+ {[%emt 0:02:56]} 44. Kh2 {[%emt 0:00:09]} Qe1 {[%emt 0:05:57]} 45. Qxh7+ {[%emt 0:00:42]} Kg5 {[%emt 0:00:05]} 46. Rg7 {[%emt 0:00:04]} Qxe4 {[%emt 0:00:26]} 47. Rxg6+ {[%emt 0:12:00]} 1-0

[Event "Uhlenkoeper-Open 2024"]
[Site "Uelzen"]
[Date "2024.12.30"]
[Round "8.7"]
[White "Wetterau, Nathanael"]
[Black "Askerov, Imamali"]
[Result "0-1"]
[ECO "B41"]
[WhiteElo "1961"]
[BlackElo "2007"]
[Annotator "NA RC"]
[PlyCount "48"]
[EventDate "2024.12.27"]
[EventType "swiss"]
[EventCountry "GER"]
[SourceTitle "playchess.com"]
[Source "ChessBase"]
[SourceQuality "1"]
[TimeControl "40/5400+30:1800+30"]

1. e4 {[%emt 0:00:06]} c5 {[%emt 0:01:32]} 2. Nf3 {[%emt 0:00:15]} e6 {[%emt 0:00:52]} 3. c4 {[%emt 0:01:26]} Nc6 {[%emt 0:04:22]} 4. d4 {[%emt 0:01:51]} cxd4 {[%emt 0:03:15]} 5. Nxd4 {[%emt 0:00:07]} Qc7 {[%emt 0:04:04]} 6. Nc3 {[%emt 0:07:47]} a6 {[%emt 0:01:03]} 7. Be3 {[%emt 0:01:15]} Nf6 {[%emt 0:04:02]} 8. Be2 {[%emt 0:08:06]} Bb4 {[%emt 0:03:27]} 9. f3 {[%emt 0:02:34]} d5 {[%emt 0:23:14]} 10. exd5 {[%emt 0:13:47]} exd5 {[%emt 0:00:44]} 11. Nxc6 {[%emt 0:05:55]} bxc6 {[%emt 0:17:45]} 12. Kf2 {[%emt 0:09:47]} Bxc3 {[%emt 0:11:08]} 13. bxc3 {[%emt 0:00:10]} O-O {[%emt 0:09:22]} 14. Qd4 {[%emt 0:05:10]} Re8 {[%emt 0:03:07]} 15. Bf4 {[%emt 0:05:24]} Ne4+ {[%emt 0:01:01]} 16. fxe4 {[%emt 0:09:40]} Qxf4+ {[%emt 0:00:16]} 17. Bf3 {[%emt 0:00:06]} dxe4 {[%emt 0:01:54]} 18. Rhe1 {[%emt 0:00:56]} Bf5 {[%emt 0:01:26]} 19. Kg1 {[%emt 0:00:33]} Rad8 {[%emt 0:02:32]} 20. Qc5 {[%emt 0:04:59]} exf3 {[%emt 0:00:25]} 21. Rf1 {[%emt 0:00:05]} Be4 {[%emt 0:01:11]} 22. Rae1 {[%emt 0:00:28]} Qg4 {[%emt 0:01:11]} 23. Rf2 {[%emt 0:00:40]} fxg2 {[%emt 0:02:19]} 24. Qa7 {[%emt 0:00:33]} f5 {[%emt 0:00:26]} 0-1

[Event "Uhlenkoeper-Open 2024"]
[Site "Uelzen"]
[Date "2024.12.30"]
[Round "8.8"]
[White "Dehn, Marcus"]
[Black "Buergener, Richard"]
[Result "1-0"]
[ECO "D00"]
[WhiteElo "2053"]
[BlackElo "1857"]
[Annotator "RC"]
[PlyCount "99"]
[EventDate "2024.12.27"]
[EventType "swiss"]
[EventCountry "GER"]
[SourceTitle "playchess.com"]
[Source "ChessBase"]
[SourceQuality "1"]
[TimeControl "40/5400+30:1800+30"]

1. d4 {[%emt 0:01:24]} Nf6 {[%emt 0:00:07]} 2. Bf4 {[%emt 0:01:25]} d5 {[%emt 0:00:08]} 3. e3 {[%emt 0:00:18]} e6 {[%emt 0:00:06]} 4. c4 {[%emt 0:00:24]} Bd6 {[%emt 0:00:33]} 5. Bg3 {[%emt 0:00:06]} O-O {[%emt 0:04:14]} 6. Nc3 {[%emt 0:00:13]} b6 {[%emt 0:03:36]} 7. cxd5 {[%emt 0:01:18]} exd5 {[%emt 0:00:46]} 8. Bd3 {[%emt 0:00:06]} Be6 {[%emt 0:04:48]} 9. Nge2 {[%emt 0:00:28]} a6 {[%emt 0:08:18]} 10. O-O {[%emt 0:02:49]} Bxg3 {[%emt 0:00:36]} 11. Nxg3 {[%emt 0:01:30]} c5 {[%emt 0:03:42]} 12. dxc5 {[%emt 0:04:09]} bxc5 {[%emt 0:00:39]} 13. Rc1 {[%emt 0:06:19]} Qd6 {[%emt 0:02:34]} 14. Bb1 {[%emt 0:02:30]} Rd8 {[%emt 0:06:01]} 15. Qc2 {[%emt 0:14:22]} Nbd7 {[%emt 0:04:26]} 16. Rfd1 {[%emt 0:04:06]} Qe5 {[%emt 0:04:11]} 17. Na4 {[%emt 0:02:38]} Rdc8 {[%emt 0:11:18]} 18. Qc3 {[%emt 0:01:35]} Qxc3 {[%emt 0:04:02]} 19. Rxc3 {[%emt 0:00:19]} Rab8 {[%emt 0:02:12]} 20. b3 {[%emt 0:06:48]} c4 {[%emt 0:13:28]} 21. Rdc1 {[%emt 0:04:19]} Nc5 {[%emt 0:00:49]} 22. Nxc5 {[%emt 0:07:30]} Rxc5 {[%emt 0:00:10]} 23. Ne2 {[%emt 0:00:39]} Rcb5 {[%emt 0:05:03]} 24. Nd4 {[%emt 0:00:38]} R5b6 {[%emt 0:01:10]} 25. Bc2 {[%emt 0:01:25]} cxb3 {[%emt 0:04:56]} 26. Rxb3 {[%emt 0:01:31]} Rxb3 {[%emt 0:01:45]} 27. axb3 {[%emt 0:01:09]} Rc8 {[%emt 0:08:04]} 28. Ra1 {[%emt 0:00:43]} Ra8 {[%emt 0:00:06]} 29. Ra5 {[%emt 0:01:39]} Bc8 {[%emt 0:02:38]} 30. Kf1 {[%emt 0:02:23]} Kf8 {[%emt 0:00:55]} 31. Bd3 {[%emt 0:01:03]} Bb7 {[%emt 0:00:18]} 32. b4 {[%emt 0:01:36]} g6 {[%emt 0:00:49]} 33. f3 {[%emt 0:01:52]} Ke7 {[%emt 0:00:48]} 34. Nb3 {[%emt 0:00:35]} Nd7 {[%emt 0:00:18]} 35. Nc5 {[%emt 0:01:45]} Nxc5 {[%emt 0:00:10]} 36. bxc5 {[%emt 0:00:10]} Kd7 {[%emt 0:00:53]} 37. Ke2 {[%emt 0:00:11]} Kc6 {[%emt 0:00:37]} 38. Bc2 {[%emt 0:00:30]} Kc7 {[%emt 0:00:26]} 39. Kd3 {[%emt 0:00:39]} f6 {[%emt 0:01:23]} 40. Kd4 {[%emt 0:00:23]} Kc6 {[%emt 0:01:29]} 41. Ba4+ {[%emt 0:31:19]} Kc7 {[%emt 0:30:48]} 42. c6 {[%emt 0:00:27]} Bc8 {[%emt 0:00:59]} 43. Bb3 {[%emt 0:06:27]} Kxc6 {[%emt 0:00:00]} 44. Bxd5+ {[%emt 0:00:00]} Kb6 {[%emt 0:00:00]} 45. Bxa8 {[%emt 0:00:00]} Kxa5 {[%emt 0:00:00]} 46. Kc5 {[%emt 0:00:00]} Be6 {[%emt 0:00:00]} 47. Bc6 {[%emt 0:00:00]} f5 {[%emt 0:00:00]} 48. e4 {[%emt 0:00:00]} fxe4 {[%emt 0:00:00]} 49. fxe4 {[%emt 0:00:00]} Bf7 {[%emt 0:00:00]} 50. Bd7 {[%emt 0:00:00]} 1-0

[Event "Uhlenkoeper-Open 2024"]
[Site "Uelzen"]
[Date "2024.12.30"]
[Round "8.9"]
[White "Sviridov, Vitaliy"]
[Black "Raddatz, Michael"]
[Result "0-1"]
[ECO "A48"]
[WhiteElo "1777"]
[BlackElo "1927"]
[Annotator "NA RC"]
[PlyCount "64"]
[EventDate "2024.12.27"]
[EventType "swiss"]
[EventCountry "GER"]
[SourceTitle "playchess.com"]
[Source "ChessBase"]
[SourceQuality "1"]
[TimeControl "40/5400+30:1800+30"]

1. d4 {[%emt 0:00:05]} Nf6 {[%emt 0:00:15]} 2. Bf4 {[%emt 0:00:06]} d6 {[%emt 0:00:59]} 3. Nf3 {[%emt 0:00:07]} g6 {[%emt 0:00:44]} 4. h3 {[%emt 0:01:23]} Bg7 {[%emt 0:00:37]} 5. c3 {[%emt 0:00:03]} O-O {[%emt 0:00:18]} 6. e3 {[%emt 0:00:07]} Nbd7 {[%emt 0:02:02]} 7. Nbd2 {[%emt 0:02:25]} c5 {[%emt 0:00:11]} 8. Bh2 {[%emt 0:00:34]} a6 {[%emt 0:00:55]} 9. Be2 {[%emt 0:00:07]} b5 {[%emt 0:00:56]} 10. O-O {[%emt 0:00:11]} Bb7 {[%emt 0:00:28]} 11. Ne1 {[%emt 0:02:03]} e5 {[%emt 0:01:23]} 12. dxe5 {[%emt 0:00:08]} dxe5 {[%emt 0:01:08]} 13. a4 {[%emt 0:01:15]} c4 {[%emt 0:02:51]} 14. Ndf3 {[%emt 0:02:45]} Qe7 {[%emt 0:00:42]} 15. b3 {[%emt 0:01:49]} cxb3 {[%emt 0:03:39]} 16. Qxb3 {[%emt 0:02:00]} Nc5 {[%emt 0:02:37]} 17. Qb4 {[%emt 0:01:56]} Nd5 {[%emt 0:01:08]} 18. Qa3 {[%emt 0:00:44]} Nxa4 {[%emt 0:04:41]} 19. c4 {[%emt 0:04:49]} Qxa3 {[%emt 0:00:29]} 20. Rxa3 {[%emt 0:00:03]} Ndc3 {[%emt 0:01:10]} 21. Bd1 {[%emt 0:01:53]} Nxd1 {[%emt 0:00:34]} 22. cxb5 {[%emt 0:01:22]} axb5 {[%emt 0:00:32]} 23. Nc2 {[%emt 0:00:12]} Bxf3 {[%emt 0:06:52]} 24. gxf3 {[%emt 0:03:02]} Rfd8 {[%emt 0:02:20]} 25. Rb3 {[%emt 0:01:07]} Rac8 {[%emt 0:04:18]} 26. Na3 {[%emt 0:00:59]} Rc3 {[%emt 0:00:00]} 27. Rxc3 {[%emt 0:00:51]} Naxc3 {[%emt 0:00:12]} 28. f4 {[%emt 0:00:51]} exf4 {[%emt 0:00:19]} 29. Bxf4 {[%emt 0:00:09]} b4 {[%emt 0:00:53]} 30. Nc4 {[%emt 0:00:55]} Ne2+ {[%emt 0:00:18]} 31. Kg2 {[%emt 0:00:11]} Nxf4+ {[%emt 0:00:08]} 32. exf4 {[%emt 0:00:06]} b3 {[%emt 0:00:26]} 0-1